bitfinex/quotes_ETHUSD_20220123
["timestamp","ask_amount","ask_price","bid_price","bid_amount"]
[1642938013076,1.00164,2499.7,2499.3,1.17381199]
[1642938013277,4.17223,2499.9,2499.3,1.17381199]
[1642938013479,0.13819997,2500.0,2499.3,1.17381199]
[1642938013876,1.84323629,2499.9,2499.3,1.17381199]
[1642938014277,1.84323629,2499.9,2499.5,1.41085283]
[1642938014479,1.84323629,2499.9,2498.3,3.9952]
[1642938014480,1.84323629,2499.9,2498.1,0.16]
[1642938014680,1.84323629,2499.9,2498.1,0.21249922]
[1642938015280,1.84323629,2499.9,2498.1,23.54249922]
[1642938015480,3.31774225,2499.9,2499.3,1.15236856]
[1642938015688,1.84323629,2499.9,2499.4,1.49531957]
[1642938016740,2.37208227,2500.9,2499.8,7.3]
[1642938016939,2.37208227,2500.9,2499.9,0.20021]
[1642938016940,0.36959227,2500.9,2499.9,0.20021]
[1642938017133,0.36959227,2500.9,2499.9,4.09873886]
[1642938017134,0.160452,2500.9,2499.9,4.09873886]
[1642938017334,0.160452,2500.9,2500.0,0.01915085]
[1642938017734,0.160452,2500.9,2500.6,1.51299081]
[1642938017934,0.160452,2500.9,2500.7,1.51582384]
[1642938018335,0.160452,2500.9,2500.7,1.4744809]
[1642938019438,0.160452,2500.9,2500.8,1.20465794]
[1642938020240,1.35820057,2501.6,2501.0,0.02361308]
[1642938020510,1.35820057,2501.6,2500.8,0.06981206]
[1642938020511,1.35820057,2501.6,2500.7,2.2072809]
[1642938020702,2.59785965,2501.6,2500.7,2.2072809]
[1642938021101,2.59785965,2501.6,2501.1,1.35673254]
[1642938021300,1.35820057,2501.6,2501.1,1.35673254]
[1642938021501,2.25948373,2501.7,2501.1,1.35673254]
[1642938021502,1.19782673,2501.7,2501.1,1.35673254]
[1642938021702,1.19782673,2501.7,2500.7,0.7328]
[1642938022101,10.1185,2501.8,2500.7,0.7328]
[1642938022102,6.3161,2501.8,2500.7,0.7328]
[1642938022800,6.3161,2501.8,2501.3,1.34015387]
[1642938022801,1.12359415,2501.7,2501.3,1.34015387]
[1642938023400,2.2628128,2501.7,2501.3,1.34015387]
[1642938024002,1.12359415,2501.6,2501.3,1.34015387]
[1642938025432,1.19033598,2501.7,2501.3,1.34015387]
[1642938026239,1.0,2502.0,2501.3,1.34015387]
[1642938026436,1.0,2502.0,2501.3,2.54305387]
[1642938026640,1.12151898,2501.9,2501.3,2.54305387]
[1642938027237,1.17403696,2501.6,2501.3,2.54305387]
[1642938027742,2.12151898,2501.9,2501.3,2.54305387]
[1642938027979,1.50812128,2501.7,2501.3,1.2029]
[1642938028176,1.50812128,2501.7,2501.2,0.3046]
[1642938028578,1.0,2502.0,2501.2,0.3046]
[1642938028977,1.21903841,2501.9,2501.3,1.20130782]
[1642938029178,1.21903841,2501.9,2501.2,0.3046]
[1642938029379,1.0,2502.0,2501.2,0.3046]
[1642938029577,1.0,2502.0,2501.8,1.24448934]
[1642938030582,1.0,2502.0,2501.8,2.15678934]
[1642938031827,1.0,2502.0,2501.8,0.9123]
[1642938032327,1.0,2502.0,2501.2,0.3046]
[1642938033127,1.0,2502.0,2501.5,1.12883457]
[1642938033927,26.0,2502.0,2501.5,1.12883457]
[1642938034127,0.02172885,2501.9,2501.5,1.12883457]
[1642938035329,26.0,2502.0,2501.5,1.12883457]
[1642938038604,26.0,2502.0,2500.6,0.36001]
[1642938038605,1.18268184,2501.8,2500.6,0.36001]
[1642938038804,1.18268184,2501.8,2500.4,0.20021]
[1642938038805,0.01291336,2501.6,2500.4,0.20021]
[1642938039005,0.01291336,2501.6,2500.0,0.01233235]
[1642938039006,0.05162242,2501.5,2500.0,0.21254235]
[1642938039230,0.13847423,2501.5,2500.0,0.21254235]
[1642938039529,1.3160373,2501.1,2500.6,2.73184756]
[1642938039736,0.00374229,2501.0,2500.0,0.21254235]
[1642938039937,0.00374229,2501.0,2499.8,0.13819997]
[1642938040332,2.3160373,2501.1,2499.8,0.13819997]
[1642938040741,2.3160373,2501.1,2500.3,1.34577689]
[1642938040934,1.0,2501.1,2500.3,1.34577689]
[1642938041137,2.1544,2501.3,2500.3,1.34577689]
[1642938041333,0.3,2501.2,2500.3,1.34577689]
[1642938041534,1.1544,2501.3,2500.3,1.34577689]
[1642938041535,2.4544,2501.3,2500.3,1.34577689]
[1642938041939,1.11465172,2501.2,2500.3,1.34577689]
[1642938042243,1.11465172,2501.2,2500.8,1.13655862]
[1642938042244,1.0,2501.2,2500.8,1.13655862]
[1642938042641,1.4544,2501.3,2500.8,1.13655862]
[1642938042642,0.3,2501.3,2500.8,1.13655862]
[1642938043079,1.01291336,2501.6,2499.9,0.01259361]
[1642938043080,1.31291336,2501.6,2499.9,0.01259361]
[1642938043287,1.15001336,2501.6,2499.9,0.01259361]
[1642938043479,1.15001336,2501.6,2499.9,0.21280361]
[1642938044088,1.14607031,2500.8,2500.2,2.55799172]
[1642938044283,1.15001336,2501.6,2499.8,0.13819997]
[1642938044284,1.00096,2501.4,2499.8,0.13819997]
[1642938044486,1.1458,2501.3,2499.8,0.13819997]
[1642938044883,1.4458,2501.3,2499.8,0.13819997]
[1642938045088,2.4458,2501.3,2499.8,0.13819997]
[1642938045285,3.06764615,2500.9,2500.3,2.93908446]
[1642938045685,3.06764615,2500.9,2499.8,0.13819997]
[1642938045891,3.8628,2500.8,2499.8,0.13819997]
[1642938046085,4.8628,2500.8,2499.8,0.13819997]
[1642938046728,4.8628,2500.8,2500.2,1.33239936]
[1642938046933,4.8628,2500.8,2500.4,1.27313878]
[1642938047134,1.0,2500.8,2500.4,1.27313878]
[1642938047334,1.0,2500.8,2499.8,0.13819997]
[1642938047734,5.73652908,2500.8,2499.8,0.13819997]
[1642938047934,1.0,2500.8,2499.8,0.13819997]
[1642938048135,10.71846327,2500.8,2499.8,0.13819997]
[1642938048539,10.71846327,2500.8,2500.2,2.68814133]
[1642938048736,2.1493,2500.8,2500.2,2.68814133]
[1642938049136,1.1493,2500.8,2500.2,2.68814133]
[1642938049738,2.47749312,2500.8,2500.2,2.68814133]
[1642938049937,2.47749312,2500.8,2500.2,1.29897656]
[1642938050808,6.88060808,2500.8,2500.2,1.29897656]
[1642938051006,6.94178844,2500.8,2500.2,1.29897656]
[1642938051214,1.0,2500.7,2500.2,1.29897656]
[1642938051406,1.0,2500.7,2500.0,1.43625516]
[1642938051608,8.02922151,2500.8,2500.0,1.43625516]
[1642938051806,3.47749312,2500.8,2500.0,1.43625516]
[1642938052408,2.1493,2500.8,2500.2,1.35124165]
[1642938052607,1.1493,2500.8,2500.2,1.35124165]
[1642938052809,2.1493,2500.8,2500.2,1.35124165]
[1642938053411,1.1493,2500.8,2500.2,1.35124165]
[1642938053610,2.1493,2500.8,2500.2,1.35124165]
[1642938053817,1.1493,2500.8,2500.2,1.35124165]
[1642938055235,2.3655188,2500.8,2500.2,1.35124165]
[1642938055436,2.3655188,2500.8,2499.8,0.13819997]
[1642938056039,5.48116389,2501.5,2499.9,1.15978527]
[1642938056237,5.48116389,2501.5,2500.0,0.20021]
[1642938056238,4.68714209,2501.5,2500.0,0.20021]
[1642938056444,4.68714209,2501.5,2499.9,1.15978527]
[1642938056636,1.207,2501.5,2500.0,0.20021]
[1642938056838,1.207,2501.5,2500.0,4.11492806]
[1642938057238,0.01291336,2501.6,2501.1,1.54454762]
[1642938057239,1.42063996,2501.6,2501.1,1.54454762]
[1642938057639,2.42063996,2501.6,2501.1,1.54454762]
[1642938057837,2.42063996,2501.6,2500.0,0.20021]
[1642938058277,3.57713996,2501.6,2500.1,0.02547084]
[1642938058480,3.57713996,2501.6,2500.0,0.20021]
[1642938058680,3.57713996,2501.6,2500.7,1.55142026]
[1642938058881,3.57713996,2501.6,2500.9,1.15231662]
[1642938060286,3.57713996,2501.6,2501.1,0.48096237]
[1642938060584,2.42063996,2501.6,2500.9,1.15231662]
[1642938060784,2.42063996,2501.6,2500.3,0.21249269]
[1642938060984,0.00907915,2501.5,2500.3,0.01228269]
[1642938061184,3.56633996,2501.6,2500.3,0.01228269]
[1642938061588,3.56633996,2501.6,2500.4,1.44723985]
[1642938062027,1.13570103,2501.2,2500.7,1.50988122]
[1642938062228,1.13570103,2501.2,2500.4,1.44723985]
[1642938062431,1.0,2501.5,2500.4,1.44723985]
[1642938062631,1.1396176,2501.4,2500.8,0.58514278]
[1642938063033,1.1396176,2501.4,2500.3,4.01228269]
[1642938063232,1.1396176,2501.4,2500.3,4.21249269]
[1642938063535,1.1457,2501.6,2501.3,1.27833193]
[1642938063732,7.8117,2501.7,2500.6,0.20021]
[1642938063934,7.8117,2501.7,2500.8,0.20021]
[1642938064138,7.8117,2501.7,2500.6,0.20021]
[1642938064333,7.8117,2501.7,2500.6,0.19868904]
[1642938064537,7.8117,2501.7,2501.2,1.30854612]
[1642938064733,3.8807,2501.7,2501.2,1.30854612]
[1642938064933,3.8807,2501.7,2501.1,1.25012473]
[1642938065335,1.1581,2501.9,2501.1,1.25012473]
[1642938065898,1.11882601,2501.8,2501.1,1.25012473]
[1642938066295,1.11882601,2501.8,2501.6,1.44405776]
[1642938066700,1.11882601,2501.8,2501.5,1.40594865]
[1642938067096,1.11882601,2501.8,2500.6,0.19868904]
[1642938067298,4.74002601,2501.9,2500.6,4.3817547]
[1642938067496,4.74002601,2501.9,2500.6,0.19868904]
[1642938067698,1.11882601,2501.9,2500.9,0.01296086]
[1642938068198,1.11882601,2501.9,2500.9,4.2116499]
[1642938068401,1.11882601,2501.9,2501.8,0.65564884]
[1642938068603,1.11882601,2501.9,2501.8,2.08570266]
[1642938068802,1.11882601,2501.9,2501.8,1.43005382]
[1642938069637,1.11882601,2501.9,2501.8,1.62874286]
[1642938069835,1.11882601,2501.9,2501.8,1.43005382]
[1642938070235,12.86802601,2502.0,2501.8,1.43005382]
[1642938071238,8.5445445,2502.0,2501.9,0.19868904]
[1642938071438,8.5445445,2502.0,2501.8,1.43005382]
[1642938072637,8.5445445,2502.0,2501.9,3.09868904]
[1642938072836,8.5445445,2502.0,2501.9,2.9]
[1642938073080,8.4945445,2502.0,2501.9,2.9]
[1642938074084,8.4945445,2502.0,2501.9,3.09868904]
[1642938075488,8.4945445,2502.0,2501.9,0.19868904]
[1642938075690,8.4945445,2502.0,2501.7,1.30673587]
[1642938075890,8.4945445,2502.0,2501.6,0.19868904]
[1642938076092,8.4945445,2502.0,2501.4,0.19868904]
[1642938076948,8.4945445,2502.0,2501.4,27.2758928]
[1642938077151,8.4945445,2502.0,2501.4,23.52868904]
[1642938077548,1.61185065,2502.0,2501.5,1.33362277]
[1642938077750,1.61185065,2502.0,2501.7,0.01271603]
[1642938077950,1.61185065,2502.0,2501.9,5.45034954]
[1642938078149,1.61185065,2502.0,2501.9,5.64903858]
[1642938078550,1.61185065,2502.0,2501.9,0.69875986]
[1642938078950,1.61185065,2502.0,2501.9,3.44875986]
[1642938079151,1.61185065,2502.0,2501.9,3.6474489]
[1642938079350,1.61185065,2502.0,2501.9,3.44875986]
[1642938079550,1.61185065,2502.0,2501.9,3.6474489]
[1642938079756,1.61185065,2502.0,2501.9,4.78340264]
[1642938079952,1.61185065,2502.0,2501.9,3.6474489]
[1642938080994,3.6945,2503.1,2502.0,7.3]
[1642938081196,3.8817,2503.4,2502.0,12.45422933]
[1642938081395,3.8817,2503.4,2502.0,7.3]
[1642938081793,3.8817,2503.4,2503.2,1.14936679]
[1642938081995,6.0686,2503.6,2502.5,1.31149182]
[1642938082195,6.0686,2503.6,2502.1,23.52868904]
[1642938082196,9.4811,2503.6,2502.1,23.52868904]
[1642938082398,0.89750113,2503.5,2502.1,23.52868904]
[1642938083095,0.89750113,2503.5,2502.4,2.91661662]
[1642938083293,0.89750113,2503.5,2502.5,0.19868904]
[1642938084548,0.89750113,2503.5,2502.8,0.53315374]
[1642938084953,0.89750113,2503.5,2502.7,0.2765]
[1642938085148,1.89750113,2503.5,2502.7,0.2765]
[1642938085349,0.89750113,2503.5,2502.7,0.47518904]
[1642938086153,5.8686,2503.6,2502.7,0.47518904]
[1642938086356,1.35307212,2503.4,2502.8,1.25218359]
[1642938086760,11.46607088,2503.3,2501.9,0.01243545]
[1642938086957,11.46607088,2503.3,2501.3,1.19966]
[1642938086958,0.01242787,2502.3,2501.3,1.19966]
[1642938087155,0.01242787,2502.3,2501.3,1.0]
[1642938087156,0.02435504,2502.2,2501.3,1.0]
[1642938087355,0.02435504,2502.2,2501.1,0.19966]
[1642938087556,0.01242787,2502.3,2501.1,0.19966]
[1642938087754,1.29431235,2502.2,2501.7,1.53854691]
[1642938088385,1.29431235,2502.2,2501.4,4.0]
[1642938089586,2.52991665,2502.2,2501.6,1.31321386]
[1642938089785,2.52991665,2502.2,2501.4,4.0]
[1642938089985,1.0,2502.1,2501.4,4.0]
[1642938090794,1.0,2502.1,2501.5,1.53251047]
[1642938092042,1.29431235,2502.2,2501.5,1.53251047]
[1642938092942,1.29431235,2502.2,2501.9,0.49987216]
[1642938093343,1.29431235,2502.2,2501.4,4.0]
[1642938094341,1.29431235,2502.2,2501.9,1.21776904]
[1642938094743,0.012476,2502.3,2501.9,1.21776904]
[1642938095802,1.35354797,2502.3,2501.9,1.21776904]
[1642938097001,0.012476,2502.3,2501.9,1.21776904]
[1642938097202,1.2134,2502.6,2501.9,1.21776904]
[1642938097404,1.2134,2502.6,2501.9,1.41742904]
[1642938097604,1.0,2503.1,2501.9,1.41742904]
[1642938097803,1.1839,2503.1,2502.7,0.81461359]
[1642938098209,3.7646,2503.2,2502.7,0.81461359]
[1642938098404,0.01290289,2503.3,2502.7,0.81461359]
[1642938099439,1.01290289,2503.3,2502.7,0.81461359]
[1642938099837,0.01290289,2503.3,2502.7,0.81461359]
[1642938102143,0.96290289,2503.4,2502.7,0.81461359]
[1642938102342,1.40354445,2503.1,2502.7,0.81461359]
[1642938103983,0.96290289,2503.4,2502.7,0.81461359]
[1642938104985,2.08771039,2503.4,2502.7,0.81461359]
[1642938107033,0.96188089,2503.4,2502.7,0.81461359]
[1642938107231,1.1627,2503.6,2502.8,0.04830667]
[1642938107431,1.1627,2503.6,2502.7,0.81461359]
[1642938108437,2.70173242,2503.6,2502.7,0.81461359]
[1642938108634,3.70173242,2503.6,2502.7,0.81461359]
[1642938109633,3.70173242,2503.6,2503.1,1.21776904]
[1642938109835,2.53903242,2503.6,2503.1,1.21776904]
[1642938110234,4.8292,2503.8,2503.1,1.21776904]
[1642938110488,3.7792,2503.8,2503.1,1.21776904]
[1642938110692,3.7792,2503.8,2503.2,0.02159818]
[1642938110893,3.7792,2503.8,2503.7,0.81461359]
[1642938111293,1.0,2504.0,2503.7,0.81461359]
[1642938115231,0.89400713,2503.9,2503.7,0.81461359]
[1642938117044,0.89400713,2503.9,2502.9,0.01212752]
[1642938117243,0.89400713,2503.9,2502.8,0.19966]
[1642938117244,3.9892,2503.8,2502.8,0.19966]
[1642938117444,0.00960141,2503.6,2502.8,0.19966]
[1642938118088,9.7803,2503.7,2503.3,1.32371995]
[1642938118287,5.73605563,2503.7,2503.3,1.32371995]
[1642938118688,4.6348,2503.7,2503.3,1.32371995]
[1642938118886,1.0,2503.7,2503.3,1.32371995]
[1642938119093,0.89497478,2503.6,2503.3,1.32371995]
[1642938119291,0.89497478,2503.6,2502.8,4.19966]
[1642938120394,1.0,2503.7,2502.8,4.19966]
[1642938121598,0.89567792,2503.6,2502.8,4.19966]
[1642938122035,0.89567792,2503.6,2502.9,1.48175818]
[1642938122237,0.89567792,2503.6,2503.0,0.19966]
[1642938122436,0.89567792,2503.6,2503.0,1.47662248]
[1642938122936,0.89567792,2503.8,2503.0,1.47662248]
[1642938123737,0.89567792,2503.8,2503.7,0.55062445]
[1642938124140,0.89567792,2503.8,2503.7,0.38897232]
[1642938124337,0.89567792,2503.8,2503.0,0.19966]
[1642938125339,0.89567792,2503.8,2503.1,1.12897052]
[1642938126093,0.89567792,2503.8,2503.2,4.31959766]
[1642938126487,0.89567792,2503.8,2503.2,0.19966]
[1642938126691,0.89567792,2503.9,2503.2,0.19966]
[1642938127090,0.89567792,2503.9,2503.8,0.74175998]
[1642938129097,0.89567792,2503.9,2503.8,4.74175998]
[1642938129940,1.72429028,2504.5,2503.9,7.3]
[1642938130143,1.72429028,2504.5,2504.1,0.04308053]
[1642938130340,1.72429028,2504.5,2504.2,0.19966]
[1642938130542,2.90599028,2505.0,2504.2,1.22944659]
[1642938130744,1.12450471,2504.9,2503.8,4.0]
[1642938130942,9.80380901,2504.9,2503.8,4.0]
[1642938131143,0.99961,2504.8,2503.8,4.0]
[1642938131344,0.01243467,2504.4,2503.8,4.0]
[1642938131744,1.32710807,2504.0,2503.8,4.0]
[1642938131948,0.00689401,2503.8,2502.9,0.19966]
[1642938132146,1.16569401,2503.8,2502.9,0.19966]
[1642938132348,7.13163242,2503.8,2502.9,0.19966]
[1642938132546,7.12473841,2503.8,2502.5,0.19966]
[1642938132748,1.30259964,2503.6,2503.0,1.44516166]
[1642938132995,7.12473841,2503.8,2503.0,1.44516166]
[1642938134190,7.12473841,2503.8,2503.4,1.3207268]
[1642938134392,5.96593841,2503.8,2503.4,1.3207268]
[1642938134594,5.34232463,2503.8,2502.5,0.19966]
[1642938134889,7.6419,2503.7,2502.5,0.19966]
[1642938135190,5.41062875,2503.6,2502.5,0.19966]
[1642938135592,1.52502379,2503.4,2502.8,1.1356224]
[1642938135794,6.07496944,2503.4,2502.3,0.19966]
[1642938136094,6.07496944,2503.4,2502.0,0.058029]
[1642938136095,8.20326944,2503.4,2502.0,0.058029]
[1642938136293,8.20326944,2503.4,2502.0,0.257689]
[1642938136742,1.13580939,2503.3,2502.2,0.19966]
[1642938136943,1.13580939,2503.3,2502.7,1.28132563]
[1642938137149,2.13580939,2503.3,2502.7,1.28132563]
[1642938137347,1.13580939,2503.3,2502.7,1.28132563]
[1642938137845,5.59284896,2503.3,2502.7,1.28132563]
[1642938138045,5.67970077,2503.3,2502.2,0.19966]
[1642938138247,3.8982,2503.2,2502.0,0.058029]
[1642938138447,4.77830224,2503.1,2502.0,0.058029]
[1642938138649,1.1567,2503.1,2502.0,0.058029]
[1642938138847,1.1567,2503.1,2502.1,0.19966]
[1642938139046,1.1567,2503.1,2502.6,1.3155156]
[1642938139247,3.8982,2503.2,2502.6,1.3155156]
[1642938139447,3.8982,2503.2,2502.1,0.19966]
[1642938139847,1.0,2503.1,2502.1,0.19966]
[1642938140050,1.0,2503.1,2502.0,0.058029]
[1642938140248,1.0,2503.1,2502.0,0.257689]
[1642938140687,3.8982,2503.2,2502.8,1.21366933]
[1642938140890,1.1252,2503.3,2502.2,0.19966]
[1642938141189,5.58949072,2503.3,2502.1,4.0]
[1642938141587,5.58949072,2503.3,2502.1,4.19966]
[1642938141588,1.0,2503.2,2502.1,4.19966]
[1642938142193,2.1252,2503.3,2502.5,1.52325025]
[1642938142390,2.09326898,2503.3,2502.5,1.52325025]
[1642938142690,2.09326898,2503.3,2502.1,4.0]
[1642938142691,6.4778592,2503.3,2502.1,4.0]
[1642938142889,6.7778592,2503.3,2502.1,4.0]
[1642938143089,0.95809357,2503.2,2502.1,4.0]
[1642938143289,4.38167357,2503.1,2502.1,4.0]
[1642938143690,1.0,2503.0,2502.1,4.0]
[1642938143891,1.0,2503.0,2502.3,1.12269642]
[1642938144635,4.54678553,2503.1,2502.3,1.12269642]
[1642938145035,2.28604867,2503.2,2502.3,1.12269642]
[1642938145435,2.18012079,2503.3,2502.3,1.12269642]
[1642938145639,1.09326898,2503.3,2502.3,1.12269642]
[1642938145842,1.09326898,2503.3,2502.3,1.32235642]
[1642938146140,1.09326898,2503.3,2502.3,1.12269642]
[1642938146740,1.09326898,2503.3,2502.9,1.13318858]
[1642938146941,0.95798888,2503.2,2502.9,1.13318858]
[1642938148189,0.95798888,2503.5,2502.9,1.13318858]
[1642938148386,1.31322605,2503.4,2502.3,0.19966]
[1642938148587,5.90379604,2503.3,2502.3,0.19966]
[1642938148788,5.90379604,2503.3,2502.0,0.058029]
[1642938148987,0.08685181,2503.2,2502.0,0.058029]
[1642938149188,1.08685181,2503.2,2502.0,0.058029]
[1642938149388,0.95798888,2503.1,2502.9,4.0]
[1642938150591,0.95798888,2503.1,2503.0,1.48584998]
[1642938150794,0.95798888,2503.3,2503.0,1.48584998]
[1642938150992,0.95798888,2503.3,2502.3,0.19966]
[1642938151193,2.11838888,2503.3,2502.0,2.0772737]
[1642938151496,3.11838888,2503.3,2502.3,0.19966]
[1642938151941,0.95798888,2503.2,2502.3,0.19966]
[1642938152139,0.95798888,2503.2,2503.0,1.50046754]
[1642938153238,0.95798888,2503.1,2503.0,1.50046754]
[1642938154441,1.0,2503.5,2503.0,1.50046754]
[1642938155046,1.0,2503.5,2502.4,0.19966]
[1642938155705,0.95771983,2503.4,2502.4,0.19966]
[1642938155991,0.95771983,2503.4,2503.1,1.13267489]
[1642938158394,0.02530532,2503.3,2503.1,1.01940741]
[1642938158594,0.95771983,2503.4,2503.1,1.01940741]
[1642938158794,0.95771983,2503.4,2502.6,0.19966]
[1642938159456,2.18031983,2503.4,2503.1,4.0]
[1642938159758,1.48252002,2503.2,2503.1,4.0]
[1642938159967,0.95771983,2503.4,2503.1,4.0]
[1642938160155,0.08685181,2503.3,2503.1,4.0]
[1642938160756,5.60771983,2503.2,2503.1,4.0]
[1642938161055,6.60771983,2503.2,2503.1,4.0]
[1642938161254,6.35,2503.1,2502.0,3.558029]
[1642938161459,6.35,2503.1,2502.0,0.058029]
[1642938161460,7.35,2503.1,2502.0,0.058029]
[1642938161656,0.08685181,2503.0,2502.0,0.058029]
[1642938161856,2.75132218,2502.8,2502.0,0.058029]
[1642938162057,1.0,2502.7,2502.0,0.058029]
[1642938162459,13.5644,2502.7,2502.0,0.058029]
[1642938163000,13.65125181,2502.7,2502.0,0.058029]
[1642938163995,13.5644,2502.7,2502.0,0.058029]
[1642938164197,14.77560805,2502.7,2502.0,0.058029]
[1642938164396,14.86245986,2502.7,2502.0,0.058029]
[1642938164797,14.77560805,2502.7,2502.1,1.32978417]
[1642938164997,9.8928,2502.7,2502.1,1.32978417]
[1642938165605,6.0809,2502.7,2502.1,1.32978417]
[1642938167235,5.0809,2502.7,2502.1,1.32978417]
[1642938167435,5.0809,2502.7,2502.2,0.02370767]
[1642938167835,5.0809,2502.7,2502.5,1.46352934]
[1642938168035,2.42615246,2503.0,2501.6,1.10559149]
[1642938168238,5.0476,2502.9,2501.6,1.10559149]
[1642938168435,5.0476,2502.9,2501.7,0.19966]
[1642938168436,6.0476,2502.9,2501.7,0.19966]
[1642938169034,6.0476,2502.9,2502.2,1.52909581]
[1642938170237,6.0476,2502.9,2502.2,5.52909581]
[1642938171699,6.0476,2502.9,2502.6,1.42581439]
[1642938171902,1.0,2502.9,2502.6,1.42581439]
[1642938172100,1.0,2503.0,2502.6,1.42581439]
[1642938172703,1.2131,2503.2,2502.6,1.42581439]
[1642938172903,1.29551166,2503.1,2502.2,4.0]
[1642938173305,1.49516166,2503.1,2502.2,4.0]
[1642938173507,1.00036,2502.9,2502.2,4.0]
[1642938174004,0.08685181,2502.8,2502.3,1.22572414]
[1642938174238,1.00036,2502.9,2502.3,1.22572414]
[1642938174641,2.08721181,2502.9,2502.3,1.22572414]
[1642938174838,1.08721181,2502.9,2502.3,1.22572414]
[1642938175039,2.08721181,2502.9,2502.3,1.22572414]
[1642938175239,1.0,2503.1,2502.3,1.22572414]
[1642938175646,1.2131,2503.2,2502.3,1.22572414]
[1642938175647,1.33601686,2503.0,2502.3,1.22572414]
[1642938176644,0.08685181,2502.9,2502.3,1.22572414]
[1642938177646,1.33601686,2503.0,2502.3,1.22572414]
[1642938178084,1.00025,2503.1,2502.3,1.22572414]
[1642938178485,1.00025,2503.1,2502.7,1.48370754]
[1642938178693,1.2131,2503.2,2502.7,1.48370754]
[1642938178885,0.93606239,2503.0,2502.7,1.48370754]
[1642938179086,2.45251359,2503.0,2502.2,4.0]
[1642938179988,1.5164512,2503.0,2502.2,4.0]
[1642938180389,1.5164512,2503.0,2502.6,1.18477025]
[1642938180590,1.0,2503.2,2502.6,1.18477025]
[1642938181199,5.02035181,2503.3,2502.6,1.18477025]
[1642938181200,4.9335,2503.3,2502.6,1.18477025]
[1642938181394,0.93555721,2503.1,2502.7,4.29440722]
[1642938181594,0.93555721,2503.1,2502.6,1.38443025]
[1642938182239,0.93555721,2503.1,2502.7,1.34606]
[1642938182439,0.93555721,2503.1,2502.6,1.38443025]
[1642938182638,1.53350914,2503.6,2502.6,1.38443025]
[1642938182639,0.93555721,2503.2,2502.6,1.38443025]
[1642938183038,0.93555721,2503.2,2502.3,0.19966]
[1642938183941,0.93555721,2503.5,2502.3,0.19966]
[1642938184343,0.93555721,2503.5,2503.1,1.23391446]
[1642938184541,0.93555721,2503.5,2502.3,1.38641375]
[1642938184743,0.93555721,2503.5,2502.3,0.19966]
[1642938184942,4.24102391,2503.4,2502.3,0.49966]
[1642938185342,0.93555721,2503.5,2502.3,0.49966]
[1642938185599,4.3502236,2503.4,2502.4,1.44735152]
[1642938185801,5.4770236,2503.4,2502.4,1.44735152]
[1642938186001,1.3,2503.3,2502.4,1.44735152]
[1642938186401,1.02240902,2503.2,2502.4,1.44735152]
[1642938186802,1.02240902,2503.2,2502.8,1.17714829]
[1642938187002,1.02240902,2503.2,2502.2,4.0]
[1642938187405,1.53336003,2503.6,2502.9,0.01267344]
[1642938187601,1.53336003,2503.6,2503.0,7.54362778]
[1642938187800,0.93513933,2503.8,2503.0,7.54362778]
[1642938188602,0.93513933,2503.8,2503.3,1.40384736]
[1642938188802,2.07309679,2503.8,2503.4,0.0251678]
[1642938189006,2.07309679,2503.8,2503.3,1.40384736]
[1642938189643,2.07309679,2503.8,2503.1,0.2901]
[1642938190246,0.93513933,2503.7,2503.1,0.2901]
[1642938190747,0.93513933,2503.7,2503.6,1.37919932]
[1642938190949,0.93513933,2503.7,2503.2,0.19966]
[1642938191149,0.93513933,2503.7,2502.6,0.1597]
[1642938191150,23.52965,2503.6,2502.6,0.1597]
[1642938191350,23.52965,2503.6,2501.2,1.50928645]
[1642938191351,0.01207856,2503.3,2502.3,0.1597]
[1642938191555,0.01852859,2503.2,2502.3,0.1597]
[1642938191753,23.4353804,2503.2,2502.3,0.1597]
[1642938191950,1.49461712,2502.9,2502.3,0.1597]
[1642938192353,0.08685181,2502.8,2502.3,0.1597]
[1642938192550,1.12709724,2502.6,2502.3,0.1597]
[1642938193394,1.12709724,2502.6,2501.2,0.02]
[1642938193395,1.21394905,2502.6,2501.2,0.02]
[1642938193793,1.2143,2502.5,2501.2,0.02]
[1642938193995,2.73183446,2502.5,2501.9,1.43197392]
[1642938194197,2.21394905,2502.6,2501.9,1.43197392]
[1642938194396,2.21394905,2502.6,2501.2,0.02]
[1642938194595,3.39034905,2502.6,2501.2,0.02]
[1642938195197,4.39081905,2502.6,2501.2,0.02]
[1642938195601,1.23246762,2502.0,2501.3,1.15248719]
[1642938195802,4.39081905,2502.6,2501.3,1.15248719]
[1642938195803,3.26372181,2502.6,2501.3,1.15248719]
[1642938196002,1.0,2502.5,2501.3,1.15248719]
[1642938196202,3.26372181,2502.6,2501.3,1.15248719]
[1642938196402,3.2583987,2502.6,2501.3,1.15248719]
[1642938196844,1.10267947,2502.3,2501.2,0.02]
[1642938197239,1.10267947,2502.3,2501.2,4.60693663]
[1642938197439,1.0,2502.5,2501.2,4.60693663]
[1642938197643,3.17687,2502.6,2501.2,4.60693663]
[1642938197840,3.17687,2502.6,2501.6,1.3473427]
[1642938197841,1.47586035,2502.3,2501.6,1.3473427]
[1642938198842,1.19354349,2502.1,2501.6,1.3473427]
[1642938200491,1.19354349,2502.1,2501.6,5.3473427]
[1642938201497,1.19354349,2502.1,2501.6,1.3473427]
[1642938201696,1.0,2502.5,2501.6,1.3473427]
[1642938201894,2.1764,2502.6,2501.6,1.3473427]
[1642938202296,3.59499702,2502.6,2502.0,1.39735728]
[1642938202496,2.41859702,2502.6,2501.2,0.02]
[1642938202697,3.57839702,2502.6,2501.2,0.02]
[1642938203595,1.12217748,2502.0,2501.6,1.49776904]
[1642938204095,1.0,2502.5,2501.6,1.49776904]
[1642938204341,2.1598,2502.6,2501.6,1.49776904]
[1642938204744,1.44912686,2502.5,2501.6,1.49776904]
[1642938204940,1.42300772,2502.0,2501.6,1.49776904]
[1642938205846,1.42300772,2502.0,2501.2,0.02]
[1642938206049,0.00743781,2501.9,2501.2,0.02]
[1642938206245,1.42300772,2502.0,2501.2,0.02]
[1642938207046,1.42300772,2502.0,2501.8,1.27254388]
[1642938207448,1.42300772,2502.0,2501.2,0.02]
[1642938207849,4.9537,2502.3,2501.2,0.02]
[1642938208694,4.9537,2502.3,2501.8,1.34118324]
[1642938208893,2.63273294,2502.3,2501.8,1.34118324]
[1642938209196,1.44933294,2502.3,2501.8,1.34118324]
[1642938209393,1.44933294,2502.3,2501.2,0.02]
[1642938210698,1.44933294,2502.3,2501.7,1.20839313]
[1642938211299,1.44933294,2502.3,2501.2,0.02]